bitfinex/quotes_SOLUSD_20250823
["timestamp","ask_amount","ask_price","bid_price","bid_amount"]
[1755930318169,40.08,206.19,206.17,13.21097413]
[1755930318355,40.08,206.19,206.18,3.32610325]
[1755930318557,40.08,206.19,206.17,9.88487088]
[1755930318872,40.08,206.19,206.18,3.32597849]
[1755930319271,40.08,206.19,206.17,9.88487088]
[1755930319466,40.08,206.19,206.17,10.59487088]
[1755930319662,40.08,206.19,206.18,3.32546302]
[1755930319867,40.08,206.19,206.17,10.59487088]
[1755930320377,40.08,206.19,206.17,9.88487088]
[1755930321444,40.08,206.19,206.18,3.32578872]
[1755930321957,7.52436813,206.21,206.18,3.32578872]
[1755930322154,40.04,206.2,206.18,3.32578872]
[1755930322374,13.59559401,206.15,206.0,2.52885958]
[1755930322572,9.88487088,206.03,205.94,0.71]
[1755930322774,26.0,206.11,205.95,3.25724666]
[1755930322964,26.0,206.11,205.94,0.71]
[1755930322965,9.88487088,206.01,205.96,3.25724666]
[1755930323174,40.04,206.0,205.97,3.96324432]
[1755930323370,0.71,206.03,205.97,0.71]
[1755930323675,40.04,206.02,205.97,0.71]
[1755930324262,9.88487088,206.0,205.93,1.31290191]
[1755930324663,9.88487088,206.0,205.94,0.71]
[1755930324860,40.04,205.99,205.94,0.71]
[1755930325070,40.04,205.99,205.93,0.60290191]
[1755930325071,0.71,205.98,205.93,0.60290191]
[1755930325359,9.88487088,205.95,205.93,0.60290191]
[1755930325667,40.04,205.94,205.93,0.60290191]
[1755930327776,0.7,205.98,205.93,1.25290191]
[1755930328077,40.04,205.97,205.93,1.25290191]
[1755930328963,10.58487088,205.96,205.93,0.60290191]
[1755930329164,9.88487088,205.95,205.93,0.60290191]
[1755930329374,0.7,205.95,205.93,0.60290191]
[1755930329876,9.88487088,205.96,205.93,0.60290191]
[1755930330050,0.7,205.95,205.93,0.60290191]
[1755930330656,9.88487088,205.96,205.93,0.60290191]
[1755930330857,50.62487088,205.97,205.93,0.60290191]
[1755930331077,0.7,205.96,205.93,0.60290191]
[1755930331357,10.58487088,205.96,205.93,0.60290191]
[1755930332873,0.7,205.96,205.93,0.60290191]
[1755930333467,0.7,205.95,205.93,0.60290191]
[1755930333678,40.04,205.94,205.93,0.60290191]
[1755930333878,0.7,205.96,205.93,0.60290191]
[1755930334075,40.04,205.94,205.93,0.60290191]
[1755930339266,9.88487088,205.97,205.93,0.60290191]
[1755930339462,40.04,205.96,205.93,0.60290191]
[1755930339662,40.04,205.95,205.93,0.60290191]
[1755930339976,40.74,205.95,205.93,0.60290191]
[1755930340364,0.7,205.94,205.93,0.60290191]
[1755930340563,40.04,205.95,205.93,0.60290191]
[1755930340788,40.74,205.95,205.93,0.60290191]
[1755930341167,10.58487088,205.95,205.93,0.60290191]
[1755930341372,40.04,205.94,205.93,0.60290191]
[1755930343875,20.542202,206.0,205.93,0.60290191]
[1755930344075,0.7,205.99,205.93,11.16777279]
[1755930344275,40.04,205.98,205.93,11.16777279]
[1755930344482,10.58487088,205.99,205.93,0.63290191]
[1755930344675,40.04,205.98,205.94,0.65]
[1755930344874,20.542202,206.0,205.94,0.65]
[1755930344875,20.542202,206.0,205.96,9.88487088]
[1755930345075,40.04,205.97,205.95,9.88487088]
[1755930345277,40.04,205.96,205.95,9.88487088]
[1755930345482,40.02,205.96,205.94,9.88487088]
[1755930345794,40.02,205.96,205.94,0.65]
[1755930346194,40.02,205.96,205.93,0.91722505]
[1755930346195,40.02,205.96,205.93,0.63290191]
[1755930347886,40.02,205.96,205.94,0.65]
[1755930348084,10.58487088,205.99,205.94,0.65]
[1755930348399,20.542202,206.0,205.93,0.63290191]
[1755930348400,40.72,205.98,205.93,0.63290191]
[1755930348608,40.72,205.98,205.93,1.28290191]
[1755930348788,0.7,205.98,205.93,1.28290191]
[1755930348989,40.02,205.97,205.94,0.65]
[1755930349389,31.12707288,206.0,205.94,0.65]
[1755930349596,49.90487088,205.99,205.94,0.65]
[1755930349785,50.60487088,205.99,205.93,0.63290191]
[1755930349985,40.72,205.99,205.93,0.63290191]
[1755930350295,10.58487088,205.99,205.93,1.28290191]
[1755930350511,40.02,205.98,205.93,1.28290191]
[1755930350693,40.02,205.97,205.94,0.65]
[1755930351082,40.72,205.97,205.93,0.63290191]
[1755930351578,40.02,205.97,205.94,0.65]
[1755930352285,40.02,205.97,205.93,0.63290191]
[1755930352487,40.02,205.97,205.94,0.65]
[1755930353698,0.7,205.98,205.94,0.65]
[1755930354112,40.0,205.97,205.94,0.65]
[1755930354293,40.0,205.97,205.93,10.51777279]
[1755930354489,40.0,205.97,205.93,11.16777279]
[1755930356231,40.0,205.97,205.94,10.53487088]
[1755930356544,40.0,205.96,205.94,0.65]
[1755930356706,40.0,205.96,205.94,10.53487088]
[1755930357406,40.0,205.96,205.93,0.63290191]
[1755930357717,40.0,205.96,205.93,11.16777279]
[1755930358519,40.0,205.96,205.94,9.88487088]
[1755930360120,0.69,205.95,205.93,0.63290191]
[1755930360328,40.0,205.96,205.93,0.63290191]
[1755930360528,0.69,205.97,205.93,10.51777279]
[1755930360717,39.98,205.96,205.94,9.88487088]
[1755930361531,40.67,205.96,205.93,10.51777279]
[1755930361826,20.542202,206.0,205.94,0.65]
[1755930362026,20.542202,206.0,205.95,26.0]
[1755930362209,20.542202,206.0,205.99,9.88487088]
[1755930362412,60.522202,206.0,205.99,9.88487088]
[1755930363916,20.542202,206.0,205.99,9.88487088]
[1755930364238,60.522202,206.0,205.99,9.88487088]
[1755930365142,60.522202,206.0,205.99,10.81919402]
[1755930365328,20.542202,206.0,205.99,50.41478803]
[1755930365640,0.06,206.11,206.08,0.28432314]
[1755930365806,40.65,206.1,206.08,9.88487088]
[1755930366011,39.96,206.1,206.09,13.36850469]
[1755930366543,0.06,206.11,206.1,13.87991715]
[1755930366836,0.06,206.11,206.1,26.9640987]
[1755930367135,0.06,206.11,206.1,32.57980086]
[1755930367335,0.06,206.11,206.1,9.09933597]
[1755930367520,0.06,206.11,206.1,18.98420685]
[1755930367848,40.02,206.11,206.1,37.48232098]
[1755930368046,40.02,206.11,206.1,37.48432922]
[1755930369759,40.02,206.11,206.1,27.59945834]
[1755930369923,40.02,206.11,206.1,37.48432922]
[1755930370258,0.06,206.11,206.1,37.48432922]
[1755930371049,0.06,206.11,206.1,34.28301031]
[1755930371259,0.06,206.11,206.1,37.47365131]
[1755930371622,0.06,206.11,206.1,37.47131225]
[1755930371820,0.06,206.14,206.13,39.59559401]
[1755930372054,0.69,206.23,206.18,0.28432314]
[1755930372260,0.69,206.23,206.18,26.95308997]
[1755930372419,0.69,206.23,206.18,13.35749596]
[1755930372624,0.06,206.24,206.18,26.95308997]
[1755930373026,0.06,206.24,206.18,36.95308997]
[1755930373244,0.06,206.24,206.22,39.59559401]
[1755930373429,0.06,206.24,206.23,26.95308997]
[1755930374159,0.69,206.31,206.26,26.0]
[1755930374364,0.69,206.31,206.3,9.88487088]
[1755930374661,0.2,206.32,206.3,9.88487088]
[1755930374953,0.2,206.32,206.27,0.28432314]
[1755930374954,0.2,206.32,206.31,9.88487088]
[1755930375760,0.2,206.32,206.31,10.16919402]
[1755930376180,0.2,206.32,206.31,23.76478803]
[1755930376476,0.2,206.32,206.31,29.60483024]
[1755930376977,0.2,206.32,206.28,26.0]
[1755930376978,0.89,206.32,206.28,26.0]
[1755930377133,0.89,206.32,206.31,9.88487088]
[1755930378069,0.2,206.32,206.31,10.16919402]
[1755930378771,0.2,206.32,206.31,36.16919402]
[1755930379556,0.89,206.32,206.28,5.59199187]
[1755930379738,0.69,206.31,206.3,9.88487088]
[1755930380166,0.69,206.31,206.29,9.88487088]
[1755930380349,39.9,206.3,206.29,9.88487088]
[1755930380547,40.59,206.3,206.29,9.88487088]
[1755930380740,40.59,206.3,206.29,6.88487088]
[1755930382951,40.57,206.3,206.29,6.88487088]
[1755930384667,40.08,206.32,206.31,26.0]
[1755930384853,40.08,206.32,206.31,35.88487088]
[1755930385460,40.77,206.32,206.31,36.16919402]
[1755930385643,40.08,206.32,206.31,36.16919402]
[1755930386352,40.77,206.32,206.31,36.16919402]
[1755930387353,0.89,206.32,206.31,36.16919402]
[1755930387553,40.08,206.32,206.31,36.16919402]
[1755930389070,0.2,206.32,206.31,36.16919402]
[1755930389375,40.06,206.32,206.31,36.16919402]
[1755930390464,40.75,206.32,206.31,36.16919402]
[1755930390803,0.2,206.32,206.31,36.16919402]
[1755930391303,0.2,206.32,206.31,56.768334]
[1755930392288,0.06,206.35,206.32,0.28432314]
[1755930392584,0.06,206.35,206.34,23.76478803]
[1755930394689,0.06,206.37,206.36,13.59559401]
[1755930394865,0.06,206.37,206.36,23.76478803]
[1755930401288,0.06,206.37,206.36,52.97632501]
[1755930401701,0.06,206.37,206.36,26.97617053]
[1755930402696,0.06,206.37,206.36,52.97617053]
[1755930402913,0.2,206.4,206.36,52.97617053]
[1755930402914,0.2,206.4,206.39,39.87991715]
[1755930403202,0.06,206.42,206.4,13.87991715]
[1755930403494,0.06,206.45,206.44,59.76478803]
[1755930403681,0.06,206.48,206.46,0.28432314]
[1755930403993,0.06,206.48,206.46,26.97617053]
[1755930404175,0.06,206.48,206.46,28.91335653]
[1755930404570,0.06,206.5,206.49,39.59559401]
[1755930404789,0.06,206.5,206.49,43.09129965]
[1755930404994,0.06,206.5,206.49,52.97617053]
[1755930405574,0.75,206.5,206.49,26.28432314]
[1755930405776,0.75,206.5,206.49,36.16919402]
[1755930406473,0.75,206.5,206.49,39.3829017]
[1755930406667,0.75,206.5,206.49,52.97849571]
[1755930407287,0.06,206.5,206.49,52.97849571]
[1755930407486,0.75,206.5,206.49,49.76478803]
[1755930407689,0.75,206.5,206.49,52.98176231]
[1755930408889,0.75,206.5,206.49,39.3861683]
[1755930409609,0.06,206.5,206.49,39.3861683]
[1755930410103,0.75,206.5,206.49,39.3861683]
[1755930410304,0.75,206.5,206.49,52.98176231]
[1755930411785,0.75,206.5,206.49,3.50129742]
[1755930411985,0.75,206.5,206.49,13.3861683]
[1755930412307,0.75,206.5,206.49,13.10184516]
[1755930412600,0.75,206.5,206.49,13.24400673]
[1755930412783,0.75,206.5,206.49,3.21697428]
[1755930413590,10.63487088,206.5,206.46,29.21697428]
[1755930413793,0.69,206.49,206.47,3.21697428]
[1755930413993,39.78,206.48,206.43,0.03]
[1755930414212,0.69,206.47,206.44,3.22864152]
[1755930414385,0.69,206.47,206.45,3.22864152]
[1755930414707,0.69,206.47,206.46,3.22864152]
[1755930416715,0.69,206.47,206.44,26.0]
[1755930416916,0.69,206.47,206.45,3.23717608]
[1755930417121,0.69,206.47,206.46,3.23717608]
[1755930419002,10.57487088,206.47,206.46,3.23717608]
[1755930420332,50.35487088,206.47,206.46,3.23717608]
[1755930421405,50.35487088,206.47,206.46,2.51717608]
[1755930421625,50.35487088,206.47,206.43,0.03]
[1755930421818,0.71,206.46,206.43,0.03]
[1755930422032,9.88487088,206.44,206.43,0.03]
[1755930422519,10.59487088,206.44,206.43,0.03]
[1755930423316,50.35487088,206.44,206.43,0.03]
[1755930423816,10.59487088,206.44,206.43,0.03]
[1755930424026,50.35487088,206.44,206.43,0.03]
[1755930425410,50.35487088,206.44,206.38,0.03]
[1755930425609,9.88487088,206.39,206.38,0.03]
[1755930425828,49.64487088,206.39,206.38,0.03]
[1755930426135,50.35487088,206.39,206.38,0.03]
[1755930426937,50.35487088,206.39,206.19,0.03]
[1755930426938,13.59559401,206.38,206.25,4.86692266]
[1755930427129,9.88487088,206.28,206.25,4.86692266]
[1755930427318,39.76,206.27,206.25,4.86692266]
[1755930428051,39.76,206.27,206.23,0.28432314]
[1755930428234,39.76,206.27,206.25,26.0]
[1755930428641,49.64487088,206.27,206.25,26.0]
[1755930429948,50.35487088,206.27,206.25,26.0]
[1755930430842,50.35487088,206.27,206.12,0.67]
[1755930431050,9.88487088,206.2,206.13,9.88487088]
[1755930431223,49.64487088,206.2,206.17,26.0]
[1755930431428,50.35487088,206.2,206.17,26.0]
[1755930431658,12.11361199,206.38,206.14,13.59559401]
[1755930431659,10.59487088,206.26,206.22,26.0]
[1755930431820,39.76,206.25,206.23,0.28432314]
[1755930432645,49.64487088,206.25,206.23,0.28432314]
[1755930433746,39.76,206.25,206.23,0.28432314]
[1755930434154,0.71,206.24,206.23,0.28432314]
[1755930434338,10.59487088,206.24,206.23,0.28432314]
[1755930434744,0.71,206.24,206.23,0.28432314]
[1755930434940,49.64487088,206.25,206.23,0.28432314]
[1755930435136,39.78,206.24,206.23,0.28432314]
[1755930435545,9.88487088,206.25,206.23,0.28432314]
[1755930435746,39.76,206.24,206.23,0.28432314]
[1755930436134,9.88487088,206.26,206.23,0.28432314]
[1755930436659,39.76,206.25,206.23,26.28432314]
[1755930437043,39.76,206.25,206.23,0.28432314]
[1755930437250,9.88487088,206.26,206.23,0.28432314]
[1755930437251,9.88487088,206.26,206.23,26.28432314]
[1755930437560,39.78,206.25,206.23,26.28432314]
[1755930437752,10.59487088,206.26,206.23,0.28432314]
[1755930438065,39.78,206.25,206.23,26.28432314]
[1755930439177,39.76,206.24,206.23,26.28432314]
[1755930439746,10.59487088,206.26,206.23,26.28432314]
[1755930439939,39.78,206.25,206.23,26.28432314]
[1755930441162,39.78,206.25,206.2,10.55487088]
[1755930441163,10.59487088,206.24,206.19,0.03]
[1755930441364,9.88487088,206.2,206.19,0.03]
[1755930441543,39.76,206.2,206.19,0.31432314]
[1755930442163,50.35487088,206.2,206.19,0.03]
[1755930442364,40.47,206.2,206.19,0.03]
[1755930442539,39.76,206.2,206.19,0.03]
[1755930444045,9.88487088,206.21,206.19,0.03]
[1755930444253,39.76,206.2,206.19,0.03]
[1755930444658,26.0,206.3,206.19,0.03]
[1755930444858,0.06,206.31,206.19,0.03]
[1755930444859,10.59487088,206.25,206.2,0.28432314]
[1755930445060,0.71,206.27,206.2,0.28432314]
[1755930445258,39.82,206.26,206.2,36.16919402]
[1755930446060,49.70487088,206.26,206.2,26.28432314]
[1755930446374,39.76,206.25,206.2,26.28432314]
[1755930446552,9.94487088,206.26,206.2,26.28432314]
[1755930446753,39.76,206.24,206.2,26.28432314]
[1755930447686,9.94487088,206.26,206.2,26.28432314]
[1755930447852,39.76,206.25,206.2,26.28432314]
[1755930448054,39.76,206.25,206.2,26.96432314]
[1755930448260,39.76,206.24,206.2,26.96432314]
[1755930448477,39.76,206.24,206.2,36.84919402]
[1755930448775,39.76,206.23,206.22,26.28432314]
[1755930449371,39.76,206.23,206.22,0.28432314]
[1755930450476,40.43,206.23,206.22,0.28432314]
[1755930450980,50.31487088,206.23,206.19,0.03]
[1755930451276,9.88487088,206.24,206.19,0.71]
[1755930451460,39.76,206.23,206.19,0.31432314]
[1755930452053,39.76,206.22,206.21,26.28432314]
[1755930452665,39.76,206.22,206.21,0.28432314]
[1755930453784,0.73,206.26,206.22,0.28432314]
[1755930453969,39.76,206.25,206.22,0.28432314]
[1755930454163,40.43,206.25,206.22,0.28432314]
[1755930454564,39.76,206.24,206.22,0.28432314]
[1755930455075,0.73,206.26,206.22,0.28432314]
[1755930455282,39.76,206.25,206.22,0.28432314]
[1755930455669,40.43,206.25,206.22,0.28432314]
[1755930456254,0.67,206.25,206.22,0.28432314]
[1755930456460,39.74,206.24,206.22,0.28432314]
[1755930457072,39.74,206.24,206.19,0.03]
[1755930457274,39.74,206.24,206.22,0.28432314]
[1755930457474,40.41,206.24,206.22,0.28432314]
[1755930457676,0.06,206.26,206.22,23.76478803]
[1755930457887,0.06,206.26,206.21,26.0]
[1755930457888,0.06,206.26,206.25,0.28432314]
[1755930458179,39.8,206.26,206.25,10.16919402]
[1755930458579,39.8,206.26,206.25,13.37972931]
[1755930458799,0.06,206.26,206.25,26.97532332]
[1755930458990,39.8,206.26,206.25,27.65532332]
[1755930459203,0.06,206.26,206.25,27.65532332]
[1755930459483,39.8,206.26,206.25,27.65532332]
[1755930460572,0.06,206.26,206.25,27.65532332]
[1755930460778,39.8,206.26,206.25,27.65532332]
[1755930461191,0.06,206.26,206.25,27.65532332]
[1755930461399,39.8,206.26,206.25,27.65532332]
[1755930461589,39.8,206.26,206.25,24.44478803]
[1755930461789,39.8,206.26,206.25,27.66101098]
[1755930463467,0.06,206.26,206.25,27.66101098]
[1755930463988,39.78,206.26,206.25,27.66101098]
[1755930464567,0.06,206.26,206.25,27.66101098]
[1755930464768,39.78,206.26,206.25,27.66101098]
[1755930464968,0.06,206.26,206.25,27.66101098]
[1755930465411,39.78,206.26,206.25,27.66101098]
[1755930466130,0.06,206.26,206.25,27.66101098]
[1755930466497,39.78,206.29,206.28,39.59559401]
[1755930466704,39.78,206.29,206.28,53.66101098]
[1755930467916,0.06,206.29,206.28,53.66101098]
[1755930468915,0.73,206.29,206.28,52.69668784]
[1755930469429,0.73,206.29,206.28,52.83884941]
[1755930469594,0.73,206.29,206.28,52.98101098]
[1755930469787,0.73,206.29,206.28,3.21622295]
[1755930470211,0.73,206.29,206.28,3.50054609]
[1755930470413,0.06,206.29,206.28,52.83884941]
[1755930470594,39.76,206.29,206.28,52.98101098]
[1755930470794,40.43,206.29,206.28,3.52053941]
[1755930471112,39.76,206.29,206.28,39.40541029]
[1755930471295,0.06,206.29,206.28,39.40541029]
[1755930471611,39.76,206.29,206.28,39.40662801]
[1755930472491,0.06,206.29,206.28,39.40662801]
[1755930472691,39.76,206.29,206.28,39.40662801]
[1755930473927,40.43,206.29,206.28,3.52175713]
[1755930474217,40.43,206.29,206.28,3.23743399]
[1755930474418,0.73,206.29,206.28,3.23743399]
[1755930474618,40.43,206.29,206.28,3.23743399]
[1755930474821,40.43,206.29,206.28,3.52175713]
[1755930478417,40.41,206.29,206.28,3.52175713]
[1755930478837,0.06,206.29,206.28,29.52175713]
[1755930479002,39.74,206.29,206.28,39.40662801]
[1755930479814,39.74,206.29,206.28,36.16919402]
[1755930480008,39.74,206.29,206.28,39.40580675]
[1755930480405,39.74,206.29,206.28,53.00140076]
[1755930480809,39.74,206.29,206.28,43.11652988]
[1755930481350,39.74,206.29,206.28,3.23661273]
[1755930481351,50.29487088,206.29,206.28,3.23661273]
[1755930481827,0.73,206.29,206.28,3.23661273]
[1755930482035,40.41,206.29,206.28,3.23661273]
[1755930482725,50.29487088,206.29,206.28,3.23661273]
[1755930483511,40.41,206.29,206.28,3.23661273]
[1755930484731,0.73,206.29,206.28,3.23661273]
[1755930484912,40.41,206.29,206.28,3.23661273]
[1755930485732,0.06,206.29,206.28,29.52093587]
[1755930486029,39.72,206.29,206.28,29.52093587]
[1755930486713,40.39,206.29,206.28,29.52093587]
[1755930487605,40.39,206.29,206.28,3.52093587]
[1755930488004,40.39,206.29,206.28,29.55684724]
[1755930488815,39.72,206.29,206.28,29.55684724]
[1755930489020,39.72,206.29,206.28,3.55684724]
[1755930489317,0.06,206.29,206.28,13.44171812]
[1755930489530,39.72,206.29,206.28,27.73731213]
[1755930490413,0.06,206.29,206.28,27.73731213]
[1755930490614,39.72,206.29,206.28,24.46478803]
[1755930490815,39.72,206.29,206.28,27.73850453]
[1755930491124,39.72,206.29,206.28,27.03850453]
[1755930492125,0.06,206.29,206.28,27.03850453]
[1755930492335,39.72,206.29,206.28,27.03850453]
[1755930492524,39.72,206.29,206.28,17.15363365]
[1755930492709,39.72,206.29,206.28,27.03850453]
[1755930492914,39.72,206.29,206.28,27.73850453]
[1755930493137,0.06,206.29,206.28,27.73850453]
[1755930493335,39.7,206.29,206.28,27.73850453]
[1755930493519,39.7,206.29,206.28,42.28078653]
[1755930493718,19.22222062,206.29,206.28,42.28078653]
[1755930494531,19.22222062,206.29,206.28,27.03850453]
[1755930494719,0.06,206.31,206.3,26.0]
[1755930494919,39.7,206.31,206.3,29.2737165]
[1755930495742,39.7,206.31,206.3,39.15858738]
[1755930495929,0.06,206.31,206.3,39.15858738]
[1755930496434,0.06,206.31,206.3,29.2737165]
[1755930496643,39.7,206.31,206.3,39.15858738]
[1755930496852,0.06,206.31,206.3,39.15858738]
[1755930497147,39.7,206.31,206.3,35.88487088]
[1755930497318,39.7,206.31,206.3,53.04001365]
[1755930497520,0.06,206.31,206.3,53.04001365]
[1755930497719,39.7,206.31,206.3,53.04064647]
[1755930498530,39.7,206.31,206.3,43.15577559]
[1755930498849,39.7,206.31,206.3,53.04064647]
[1755930499247,39.7,206.31,206.3,3.27585844]
[1755930499424,50.25487088,206.31,206.3,3.27585844]
[1755930499631,50.25487088,206.31,206.3,2.55585844]
[1755930499840,50.25487088,206.31,206.3,1.76585844]
[1755930501148,50.25487088,206.31,206.26,0.03]
[1755930501332,9.88487088,206.27,206.26,0.03]
[1755930501534,49.50487088,206.27,206.26,0.03]
[1755930501743,50.08487088,206.27,206.26,0.03]
[1755930502446,10.46487088,206.27,206.26,0.03]
[1755930502622,50.08487088,206.27,206.26,0.03]
[1755930503537,0.58,206.27,206.26,0.03]
[1755930503849,50.08487088,206.27,206.26,0.03]
[1755930506936,50.08487088,206.27,206.24,0.03]
[1755930506937,13.59559401,206.25,206.24,0.03]
[1755930507145,26.0,206.23,206.22,0.03]
[1755930507339,77.04942764,206.23,206.22,0.03]
[1755930507545,77.62942764,206.23,206.22,0.03]
[1755930508333,117.22942764,206.23,206.22,0.03]
[1755930508954,130.82502165,206.23,206.22,0.03]
[1755930510342,91.22502165,206.23,206.22,0.03]
[1755930510545,130.82502165,206.23,206.22,0.03]
[1755930510946,91.22502165,206.23,206.22,0.03]
[1755930511163,130.82502165,206.23,206.22,0.03]
[1755930511331,130.82502165,206.23,206.2,0.03]
[1755930511332,13.59559401,206.22,206.2,0.03]
[1755930511532,13.59559401,206.2,206.09,0.71]
[1755930511741,63.08046489,206.19,206.09,0.71]
[1755930511946,63.66046489,206.19,206.11,0.71]
[1755930512753,63.66046489,206.19,206.08,26.0]
[1755930512949,63.66046489,206.19,206.09,0.71]
[1755930513348,63.66046489,206.19,206.1,0.71]
[1755930513548,63.66046489,206.19,206.08,26.0]
[1755930513748,10.46487088,206.18,206.08,0.71]
[1755930514061,10.46487088,206.18,206.09,0.71]
[1755930514361,24.06046489,206.18,206.09,0.71]
[1755930515447,24.06046489,206.18,206.07,26.0]
[1755930515646,63.66046489,206.18,206.11,0.71]
[1755930517771,63.66046489,206.18,206.12,0.03]
[1755930520050,24.06046489,206.18,206.12,0.03]
[1755930520371,63.66046489,206.18,206.12,0.03]
[1755930520941,1.941606,206.19,206.12,0.03]
[1755930521146,49.48487088,206.18,206.15,0.71]
[1755930521347,9.88487088,206.18,206.15,0.71]
[1755930521554,49.46487088,206.18,206.15,0.71]
[1755930522657,49.48487088,206.18,206.17,0.74]
[1755930523247,49.48487088,206.18,206.17,0.03]
[1755930523650,50.06487088,206.18,206.17,0.03]
[1755930523872,49.46487088,206.18,206.17,0.03]
[1755930527263,9.88487088,206.18,206.17,0.03]
[1755930527470,49.46487088,206.18,206.17,0.03]
[1755930533184,9.88487088,206.18,206.17,0.03]
[1755930533367,49.44487088,206.18,206.17,0.03]
[1755930534190,9.88487088,206.18,206.17,0.03]
[1755930534393,49.44487088,206.18,206.17,0.03]
[1755930535494,50.02487088,206.18,206.12,0.03]
[1755930535805,9.88487088,206.13,206.12,0.03]
[1755930535969,49.42487088,206.13,206.12,0.03]
[1755930536303,49.42487088,206.13,206.12,0.74]
[1755930537397,9.88487088,206.13,206.12,0.74]
[1755930537572,49.42487088,206.13,206.12,0.74]
[1755930539894,9.88487088,206.13,206.12,0.73]
[1755930540201,26.0,206.18,206.12,0.73]
[1755930540503,9.88487088,206.13,206.12,0.73]
[1755930540710,49.42487088,206.13,206.12,0.73]
[1755930542081,49.42487088,206.13,206.12,0.03]
[1755930543901,34.96,206.18,206.12,0.73]
[1755930544115,34.96,206.18,206.14,0.28432314]
[1755930544426,39.52,206.17,206.15,13.76991749]
[1755930544726,39.52,206.17,206.16,3.88504661]
[1755930544927,39.52,206.17,206.16,3.18504661]
[1755930545084,49.40487088,206.17,206.12,0.03]
[1755930545281,9.88487088,206.16,206.13,0.7]
[1755930545503,49.40487088,206.15,206.12,0.03]
[1755930545691,39.52,206.14,206.12,0.73]
[1755930545903,39.52,206.14,206.13,0.7]
[1755930546899,44.90487088,206.18,206.13,0.7]
[1755930547101,35.02,206.18,206.13,0.7]
[1755930547297,44.90487088,206.18,206.14,0.7]
[1755930547495,39.5,206.17,206.14,0.7]
[1755930547699,44.90487088,206.18,206.14,0.7]
[1755930547912,39.5,206.17,206.14,0.7]
[1755930548108,44.90487088,206.18,206.14,0.7]
[1755930548321,39.5,206.17,206.14,0.7]
[1755930548495,49.38487088,206.17,206.14,0.7]
[1755930549301,9.88487088,206.16,206.12,0.03]
[1755930549503,39.5,206.15,206.13,0.7]
[1755930549685,39.5,206.15,206.14,0.7]
[1755930552815,39.5,206.15,206.12,0.03]
[1755930553115,39.5,206.15,206.13,0.7]
[1755930553498,39.5,206.15,206.13,10.58487088]
[1755930554818,39.48,206.14,206.13,10.58487088]
[1755930556332,39.48,206.14,206.13,0.7]
[1755930556502,39.48,206.14,206.13,10.58487088]
[1755930558617,39.46,206.14,206.13,10.58487088]
[1755930559718,39.46,206.14,206.13,9.88487088]
[1755930561313,39.46,206.14,206.13,10.61487088]
[1755930563337,39.46,206.14,206.13,13.95609359]
[1755930563545,39.44,206.14,206.13,13.95609359]
[1755930564606,35.02,206.18,206.16,26.0]
[1755930564807,35.02,206.18,206.17,3.34093722]
[1755930565030,74.46,206.18,206.17,3.34093722]
[1755930567009,84.92487088,206.18,206.13,0.03]
[1755930567218,0.58,206.17,206.14,3.34060794]
[1755930567428,0.58,206.17,206.15,3.34060794]
[1755930567429,39.44,206.16,206.15,3.34060794]
[1755930568509,49.90487088,206.16,206.15,3.34060794]
[1755930568708,49.90487088,206.16,206.13,0.03]
[1755930568932,10.46487088,206.15,206.14,3.34125736]
[1755930569536,10.46487088,206.15,206.13,0.03]
[1755930569739,10.46487088,206.15,206.14,3.34118755]